{"text_format":"1","workbook":"xlsx","n_sheets":4,"sheets":["Instructions for Judges","SCORING","RUBRIC","TeamList"],"not_rendered":{"charts":0,"images":7,"macros":1,"external_links":1,"defined_names":14,"comments":0,"pivot_tables":0},"unopened":[],"bounds":{"document_bytes":16777216,"sheet_cells":100000,"rows_first":2000,"rows_last":500,"rows_between":2000,"halvings":0,"cell_chars":16384,"cell_head_chars":4096},"cells_cut":0,"cells_raw":0,"read":"whole","date_system":"1900"}

{"sheet":"Instructions for Judges","index":0,"n_rows":162,"n_cols":3,"rows_kept":162,"cut":false,"hidden":false,"merged":[[151,2,151,24],[155,2,155,24],[161,1,161,24],[0,1,0,25],[138,2,138,24],[144,2,144,24],[149,2,149,24]]}
[null,"Instructions for the Judges"]
[]
[]
[null,"Before Team Presentations - Template Setup:"]
[null,"1.) Please fill in your name and competition class (drop down list) you are judging in cells B2 & B3"]
[null,"2. ) Save a copy of this file with your name or initials on it via Save As into the dropbox folder or a folder of your choosing"]
[null,"- This will be the main file you work out of "]
[null,"- Make sure to save as macro enabled workbook"]
[null,"- You can leave team number blank for now"]
[null,"- This essentially creates a template for you as you judge each team.  The \"Finish & Save\" button will reset the sheet back to this state each time."]
[]
[]
[]
[]
[]
[]
[]
[]
[]
[]
[]
[]
[]
[]
[]
[]
[]
[]
[]
[]
[]
[null,"3.) If you would like for the team number list to only show teams you are judging complete step 4.  If not you are ready to start listening to the team's presentations "]
[null,"a.) It will default to list of all teams competing if you skip step 4"]
[]
[null,"4.) Optional"]
[null,"a.) Go to the TeamList Tab"]
[null,"b.) In column J enter the team numbers 1 after the other in the format shown in the instructions (EX # or RNG #) starting in cell J2"]
[]
[]
[]
[]
[]
[]
[]
[]
[]
[]
[]
[]
[]
[]
[]
[]
[]
[]
[]
[]
[]
[]
[]
[]
[]
[]
[]
[]
[null,"Scoring the Presentations:"]
[]
[null,"1.) Pick the team number from the drop down.  If you didn't add the filter in step 4 above, the list will show all teams for that class similar to picture below."]
[null,"It will automatically fill in the Team Name to the right"]
[]
[]
[]
[]
[]
[]
[]
[]
[]
[]
[]
[]
[]
[]
[]
[]
[]
[]
[]
[]
[]
[]
[]
[]
[]
[null,"2.) Enter scores in column D and comments for individual questions can be entered in column J. Weighting is automatically calculated for you."]
[null,"It will round any score higher than the rubric scores to the highest rubric score."]
[]
[]
[]
[]
[]
[]
[]
[]
[]
[]
[]
[]
[]
[]
[]
[]
[]
[]
[]
[]
[]
[]
[]
[]
[]
[null,"3. ) There are two boxes at the bottom for general comments as well."]
[null,"4.) There are also several other buttons here for your use:"]
[]
[]
[]
[]
[]
[]
[]
[]
[]
[]
[]
[]
[]
[]
[]
[null,"Save File:","This one and the one at the top are there for you to save as you go so you don't lose your work.  It will save a file in the same directory as this file with your name and the team number in the filename "]
[null,null,"(your main template, save as from step #2 in setup phase)."]
[null,null,"Example: 2018_productPresentation_EX1_Ebaker.xlsm"]
[null,null,"It does not run any of the other checks built into this file other than making sure cells B2,B3,and B4 are filled out as it needs that info to save."]
[]
[null,"Finish & Save:","Press this one when you are finished and ready to move to the next team."]
[null,null,"As long as it doesn't find any errors in scores above it will save the file with your name and the team number in the filename and then clear the team number from cell B4 as well as all the scores and comments from the template."]
[null,null,"Don't worry you didn't just delete your scores as long as it said file save successful (check the folder)."]
[null,null,"It also runs the checks for missing scores, incorrect formats on scores, and that you filled out cells B2, B3, and B4."]
[null,null,"It does not run the spell checker."]
[]
[null,"For both of the save buttons:","If the file exists it will prompt you to overwrite.  If you click overwrite, it saves the last iterations with \"Backup_\" in front of the filename just in case.  Each time you overwrite the backup gets overwritten to 1 version prior to the main one."]
[]
[null,"Spell Check:","The normal spell checker won't run with the cells locked so this button will allow you to run the spell check on the comment cells.  (It also won't make you go through spell checking all the questions and headers.)"]
[null,"Check for missing scores:","It does exactly what it says; it also checks to make sure you put a number in for each score and that the score didn't get entered as text. "]
[null,null,"After fixing the scores click the button again to remove the red coloring."]
[null,null,"The Finish & Save button also runs through this macro as well."]
[null,"Remove All Red Backgrounds:","If the missing scores macro finds a missing score or a non-numerical entry in column D (other than the comments at the bottom) it makes the cell red.  If you wanted to manually remove the red, this button resets the cells back to the default color."]
[null,null,"It does not fix the score for you."]
[]
[]
[null,"Note:"]
[null,"It is highly suggested you use the macros within this file to help the scorekeepers out with data validation and to make sure you don't accidentally save over anyone else's file."]
[null,"The normal save/save as methods in excel still work if you want to use those.  Just make sure you save each file with the team number and judge's name or initials and that you did not miss any scores and you reset team number for each team"]

{"sheet":"SCORING","index":1,"n_rows":117,"n_cols":10,"rows_kept":117,"cut":false,"hidden":false,"merged":[[117,0,121,9],[122,0,126,9],[3,2,3,8],[51,0,52,0],[44,0,45,0]]}
["Лист оценки презентации 2019 MATE Russia-Far East ROV Competition Ranger and Explorer"]
["ФИО судьи:  "]
["Класс (Ranger/Explorer)"]
["Название команды/организация"]
["Категория","Критерий","Требования","Очки","Raw Score","Макс очки","Raw %","Вес","Баллы за категорию","Комментарии"]
[null,null,null,null,null,"за категорию"]
["Безопасность",null,null,null,{"$f":"SUM(E9:E15)","v":0},{"$f":"RUBRIC_SCALE*5","v":20},{"$f":"E7/F7","v":0},0.1,{"$f":"SCORE_SCALE*H7*G7","v":0}]
[null,"Наполнение"]
[null,null,"Презентация раскрывает особенности и философию безопасности",null,{"$f":"IF(ABS(D9)>RUBRIC_SCALE,RUBRIC_SCALE,ABS(D9))","v":0}]
[null,"Протоколы"]
[null,null,"Приведены протоколы безопасности и рассказали про процедуры решения вопросов безопасности",null,{"$f":"IF(ABS(D11)>RUBRIC_SCALE,RUBRIC_SCALE,ABS(D11))","v":0}]
[null,null,"Рассказали про разработку и использование чек-листов",null,{"$f":"IF(ABS(D12)>RUBRIC_SCALE,RUBRIC_SCALE,ABS(D12))","v":0}]
[null,"Меры безопасности"]
[null,null,"Сделаны предупредительные надписи на потенциально опасных деталях",null,{"$f":"IF(ABS(D14)>RUBRIC_SCALE,RUBRIC_SCALE,ABS(D14))","v":0}]
[null,null,"Рассказали про другие специфичные меры обесп. Безопасности",null,{"$f":"IF(ABS(D15)>RUBRIC_SCALE,RUBRIC_SCALE,ABS(D15))","v":0}]
["Выступление",null,null,null,{"$f":"SUM(E18:E37)","v":0},{"$f":"RUBRIC_SCALE*15","v":60},{"$f":"E16/F16","v":0},0.25,{"$f":"SCORE_SCALE*H16*G16","v":0}]
[null,"Подготовка"]
[null,null,"Все члены команды участвуют в презентации",null,{"$f":"IF(ABS(D18)>RUBRIC_SCALE,RUBRIC_SCALE,ABS(D18))","v":0}]
[null,null,"Команда хорошо подготовилась к презентации",null,{"$f":"IF(ABS(D19)>RUBRIC_SCALE,RUBRIC_SCALE,ABS(D19))","v":0}]
[null,"Подача"]
[null,null,"Презентация была динамичной, понятной и информативной",null,{"$f":"IF(ABS(D21)>RUBRIC_SCALE,RUBRIC_SCALE,ABS(D21))","v":0}]
[null,null,"Смогли \"продать\" судьям аппарат",null,{"$f":"IF(ABS(D22)>RUBRIC_SCALE,RUBRIC_SCALE,ABS(D22))","v":0}]
[null,"Креативность"]
[null,null,"Четко рассказано про технические проблемы при проектировании и изготовлении",null,{"$f":"IF(ABS(D24)>RUBRIC_SCALE,RUBRIC_SCALE,ABS(D24))","v":0}]
[null,null,"Четко рассказали про организационные проблемы при проектировании и изготовлении",null,{"$f":"IF(ABS(D25)>RUBRIC_SCALE,RUBRIC_SCALE,ABS(D25))","v":0}]
[null,"Понимание"]
[null,null,"Продемонстрировали понимание проектирования ТНПА, его технических характеристик и функций",null,{"$f":"IF(ABS(D27)>RUBRIC_SCALE,RUBRIC_SCALE,ABS(D27))","v":0}]
[null,null,"Рассказали про ключевые технические характеристики основных компонентов (самодельных или покупных)",null,{"$f":"IF(ABS(D28)>RUBRIC_SCALE,RUBRIC_SCALE,ABS(D28))","v":0}]
[null,"Бюджет"]
[null,null,"Рассказали про процесс разработки и соблюдения бюджета",null,{"$f":"IF(ABS(D30)>RUBRIC_SCALE,RUBRIC_SCALE,ABS(D30))","v":0}]
[null,null,"Выразили благодарность спонсорам средств, материалов, оборудования",null,{"$f":"IF(ABS(D31)>RUBRIC_SCALE,RUBRIC_SCALE,ABS(D31))","v":0}]
[null,null,"Объяснили решения, куда инвестировались время и ресурсы",null,{"$f":"IF(ABS(D32)>RUBRIC_SCALE,RUBRIC_SCALE,ABS(D32))","v":0}]
[null,"Командная работа"]
[null,null,"Рассказали, как команда эволюционировала, увлеличивая свои возможности и решая проблемы",null,{"$f":"IF(ABS(D34)>RUBRIC_SCALE,RUBRIC_SCALE,ABS(D34))","v":0}]
[null,null,"Видно, что данный проект является результатом командной работы, где четко понятна роль каждого участника",null,{"$f":"IF(ABS(D35)>RUBRIC_SCALE,RUBRIC_SCALE,ABS(D35))","v":0}]
[null,null,"Команда выглядит сплоченной, вовлеченной, члены команды поддерживают друг друга",null,{"$f":"IF(ABS(D36)>RUBRIC_SCALE,RUBRIC_SCALE,ABS(D36))","v":0}]
[null,null,"Команда демонстрирует наставничество и помощь в обучение среди членов команды",null,{"$f":"IF(ABS(D37)>RUBRIC_SCALE,RUBRIC_SCALE,ABS(D37))","v":0}]
["Тема соревнований/задачи",null,null,null,{"$f":"SUM(E40:E44)","v":0},{"$f":"RUBRIC_SCALE*4","v":16},{"$f":"E38/F38","v":0},0.1,{"$f":"SCORE_SCALE*H38*G38","v":0}]
[null,"Наполнение"]
[null,null,"Презентация явно связана с темой и задачами миссии",null,{"$f":"IF(ABS(D40)>RUBRIC_SCALE,RUBRIC_SCALE,ABS(D40))","v":0}]
[null,null,"Описали задачи реального мира, стоящими за задачами соревнований",null,{"$f":"IF(ABS(D41)>RUBRIC_SCALE,RUBRIC_SCALE,ABS(D41))","v":0}]
[null,"Понимание"]
[null,null,"Продемонстрировали детальное понимание научной/индустриальной составляющей миссии",null,{"$f":"IF(ABS(D43)>RUBRIC_SCALE,RUBRIC_SCALE,ABS(D43))","v":0}]
[null,null,"Продемонстрировали понимание того, как их ТНПА с его техническими характеристиками и функциями был разработан для выполнения задач миссии",null,{"$f":"IF(ABS(D44)>RUBRIC_SCALE,RUBRIC_SCALE,ABS(D44))","v":0}]
["Разработка вцелом, качество изготовления",null,null,null,{"$f":"SUM(E47:E51)","v":0},{"$f":"RUBRIC_SCALE*5","v":20},{"$f":"E45/F45","v":0},0.1,{"$f":"SCORE_SCALE*H45*G45","v":0}]
[null,"Наполнение"]
[null,null,"Общий дизайн аппарата разработан командой, хорошо продуман, и реализован (как функционально, так и эстетически)",null,{"$f":"IF(ABS(D47)>RUBRIC_SCALE,RUBRIC_SCALE,ABS(D47))","v":0}]
[null,null,"Реализация выглядит надежной и показывает мастерское исполнение",null,{"$f":"IF(ABS(D48)>RUBRIC_SCALE,RUBRIC_SCALE,ABS(D48))","v":0}]
[null,null,"Конструкция является модульной и практичный, т. е. легко подлежит ремонту в полевых условиях",null,{"$f":"IF(ABS(D49)>RUBRIC_SCALE,RUBRIC_SCALE,ABS(D49))","v":0}]
[null,null,"Продуманно, как продуктом будут пользоваться покупатели",null,{"$f":"IF(ABS(D50)>RUBRIC_SCALE,RUBRIC_SCALE,ABS(D50))","v":0}]
[null,null,"Рассказали как ТНПА был протестирован до начала мероприятия",null,{"$f":"IF(ABS(D51)>RUBRIC_SCALE,RUBRIC_SCALE,ABS(D51))","v":0}]
["Свое против покупного, повторно используемое против нового",null,null,null,{"$f":"SUM(E54:E58)","v":0},{"$f":"RUBRIC_SCALE*4","v":16},{"$f":"E52/F52","v":0},0.2,{"$f":"SCORE_SCALE*H52*G52","v":0}]
[null,"Обоснование"]
[null,null,"Привели обоснования решений между изготовлением собственных деталей и покупными изделиями",null,{"$f":"IF(ABS(D54)>RUBRIC_SCALE,RUBRIC_SCALE,ABS(D54))","v":0}]
[null,null,"Привели обоснования решений между прошлогодними деталями и новыми",null,{"$f":"IF(ABS(D55)>RUBRIC_SCALE,RUBRIC_SCALE,ABS(D55))","v":0}]
[null,"Понимание"]
[null,null,"Команда демонстрирует понимание использования коммерческих и собственных изделий/компонентов",null,{"$f":"IF(ABS(D57)>RUBRIC_SCALE,RUBRIC_SCALE,ABS(D57))","v":0}]
[null,null,"Команда демонстрирует понимание использования прошлогодних и новых изделий/компонентов",null,{"$f":"IF(ABS(D58)>RUBRIC_SCALE,RUBRIC_SCALE,ABS(D58))","v":0}]
["Аппарат",null,null,null,{"$f":"SUM(E61:E101)","v":0},{"$f":"RUBRIC_SCALE*31","v":124},{"$f":"E59/F59","v":0},0.25,{"$f":"SCORE_SCALE*H59*G59","v":0}]
[null,"Обоснование технических решений "]
[null,null,"Разработка ТНПА представлена в четкой и логичной форме",null,{"$f":"IF(ABS(D61)>RUBRIC_SCALE,RUBRIC_SCALE,ABS(D61))","v":0}]
[null,null,"Демонстрируют пошаговый процесс планирования и проектирования",null,{"$f":"IF(ABS(D62)>RUBRIC_SCALE,RUBRIC_SCALE,ABS(D62))","v":0}]
[null,null,"Функциональные дизайнерские решения обоснованы и разумны",null,{"$f":"IF(ABS(D63)>RUBRIC_SCALE,RUBRIC_SCALE,ABS(D63))","v":0}]
[null,null,"Выбор решений демонстрирует продуманный и сбалансированный компромисс",null,{"$f":"IF(ABS(D64)>RUBRIC_SCALE,RUBRIC_SCALE,ABS(D64))","v":0}]
[null,"Оригинальность"]
[null,null,"Команда сделала нововведения или модификации, что приводело к повышению функциональных возможностей при сниженнии цены",null,{"$f":"IF(ABS(D66)>RUBRIC_SCALE,RUBRIC_SCALE,ABS(D66))","v":0}]
[null,null,"Продемонстрировали инновационные решения в конструкции ТНПА, деталях или других частях",null,{"$f":"IF(ABS(D67)>RUBRIC_SCALE,RUBRIC_SCALE,ABS(D67))","v":0}]
[null,"Описание процесса решения технических проблем"]
[null,null,"Подробно рассказали как компания генерировала идеи с помощью мозгового штурма ",null,{"$f":"IF(ABS(D69)>RUBRIC_SCALE,RUBRIC_SCALE,ABS(D69))","v":0}]
[null,null,"Рассказали как оценивали и выбирали идеи",null,{"$f":"IF(ABS(D70)>RUBRIC_SCALE,RUBRIC_SCALE,ABS(D70))","v":0}]
[null,null,"Использовали рациональный процесс (оценка данных, коммерческие исследования) для оценки альтернатив",null,{"$f":"IF(ABS(D71)>RUBRIC_SCALE,RUBRIC_SCALE,ABS(D71))","v":0}]
[null,"Системный подход"]
[null,null,"Команда продемонстрировала сбалансированный системный подход к проектированию: например, хорошую интеграцию датчиков в аппарат, целостный подход к система аппарата",null,{"$f":"IF(ABS(D73)>RUBRIC_SCALE,RUBRIC_SCALE,ABS(D73))","v":0}]
[null,null,"Система отражает значительные и продуманный дизайн/разработку, т. е. это не просто интеграция приобретенных деталей",null,{"$f":"IF(ABS(D74)>RUBRIC_SCALE,RUBRIC_SCALE,ABS(D74))","v":0}]
[null,"Выбор материалов и инструментов"]
[null,null,"Рассмотрели процессы и факторы при изготовлении материалов, компонентов и других деталий",null,{"$f":"IF(ABS(D76)>RUBRIC_SCALE,RUBRIC_SCALE,ABS(D76))","v":0}]
[null,null,"Привели здравые рассуждения, обосновывающие выбор",null,{"$f":"IF(ABS(D77)>RUBRIC_SCALE,RUBRIC_SCALE,ABS(D77))","v":0}]
[null,"Конструкция аппарата"]
[null,null,"Описаны компромиссы и обоснование стоимости ТНПА, размер, и вес",null,{"$f":"IF(ABS(D79)>RUBRIC_SCALE,RUBRIC_SCALE,ABS(D79))","v":0}]
[null,"Системы аппарата"]
[null,null,"Описано логично и понятно, как компоненты и материалы были выраны для выполнения конкретных задач, учитывая экономическую эффективность",null,{"$f":"IF(ABS(D81)>RUBRIC_SCALE,RUBRIC_SCALE,ABS(D81))","v":0}]
[null,null,"Описано, как дизайн/разработка эволюционировала, чтобы соответствовать требованиям конкурса",null,{"$f":"IF(ABS(D82)>RUBRIC_SCALE,RUBRIC_SCALE,ABS(D82))","v":0}]
[null,"Система управления и электрическая система"]
[null,null,"Схема управления, разработанная командой является разумной, эффективной и логичной",null,{"$f":"IF(ABS(D84)>RUBRIC_SCALE,RUBRIC_SCALE,ABS(D84))","v":0}]
[null,null,"Хорошо рассказали про проектирование системы управления (включая код, если система программировалась)",null,0]
[null,null,"Хорошо рассказали про проектирование электроники",null,0]
[null,null,"Продемонстрировали полное понимание функций и особенностей системы управления (с точки зрения электроники и ПО, если было программирование)",null,0]
[null,null,"Все члены команды понимают, как проектировалась система управления",null,0]
[null,null,"Продемонстрировали понимание проектирования кабеля и требований к нему",null,0]
[null,null,"Разработан и представлен протокол управления кабелем",null,0]
[null,"Движительная система"]
[null,null,"Разумное обоснование количества, типа и расположения двигателей",null,{"$f":"IF(ABS(D92)>RUBRIC_SCALE,RUBRIC_SCALE,ABS(D92))","v":0}]
[null,null,"Сделали разумные компромиссы, чтобы сбалансировать энергопотребление, стоимость, производительность и требования миссии",null,{"$f":"IF(ABS(D93)>RUBRIC_SCALE,RUBRIC_SCALE,ABS(D93))","v":0}]
[null,"Плавучести и балласт"]
[null,null,"Продемонстрировали понимание принципов балластировки",null,{"$f":"IF(ABS(D95)>RUBRIC_SCALE,RUBRIC_SCALE,ABS(D95))","v":0}]
[null,null,"Разумное обоснование используемого типа плавучести ",null,{"$f":"IF(ABS(D96)>RUBRIC_SCALE,RUBRIC_SCALE,ABS(D96))","v":0}]
[null,"Полезная нагрузка"]
[null,null,"Разумное обоснование количества, типа и размещения камер",null,{"$f":"IF(ABS(D98)>RUBRIC_SCALE,RUBRIC_SCALE,ABS(D98))","v":0}]
[null,null,"Полезная нагрузка разработана с учетом функциональности и ограничений миссии",null,{"$f":"IF(ABS(D99)>RUBRIC_SCALE,RUBRIC_SCALE,ABS(D99))","v":0}]
[null,null,"Используемые датчики подходят для эксплуатации ТНПА и задач миссии",null,{"$f":"IF(ABS(D100)>RUBRIC_SCALE,RUBRIC_SCALE,ABS(D100))","v":0}]
[null,null,"Продемонстрировали полное понимание теории и проектирования датчиков/приборов",null,{"$f":"IF(ABS(D101)>RUBRIC_SCALE,RUBRIC_SCALE,ABS(D101))","v":0}]
[]
[null,null,null,null,{"$f":"SUM(E16:E101)/2","v":0},{"$f":"SUM(F7:F101)","v":256},null,{"$f":"SUM(H7:H101)","v":1},{"$f":"SUM(I7:I101)","v":0},"Base Score"]
[null,null,null,null,"Raw Score","Max Points\n(cat)",null,"Total %\n(check:100)"]
[]
[null,null,null,null,null,null,null,"Weight"]
["Дополнительные очки",null,null,"0-4 pts\neach",{"$f":"SUM(E108:E110)","v":0},{"$f":"4*ROWS(D108:D110)","v":12},null,1,{"$f":"E107*H107","v":0},"Discretionary points"]
[null,null,"Исключительный дизайн аппарата, датчиков, полезной нагрузки, программного обеспечения или других функций",null,{"$f":"IF(ABS(D108)>RUBRIC_SCALE,RUBRIC_SCALE,ABS(D108))","v":0}]
[null,null,"Команда разработала исключительно оригинальное программное обеспечение или сделала исключительную адаптацию программного обеспечения для создания уникального решения",null,{"$f":"IF(ABS(D109)>RUBRIC_SCALE,RUBRIC_SCALE,ABS(D109))","v":0}]
[null,null,"Команда продемонстрировала значительные усилия для разработки и изготовления всех компонентов ТНПА",null,{"$f":"IF(ABS(D110)>RUBRIC_SCALE,RUBRIC_SCALE,ABS(D110))","v":0}]
["Штрафные очки",null,null,"0-4 pts\neach",{"$f":"SUM(E112:E114)","v":0},{"$f":"4*ROWS(D112:D114)","v":12},null,1,{"$f":"(-1)*E111*H111","v":0},"Deduction points"]
[null,null,"Значительное вмешательство со стороны тренеров, наставников, родителей, оказание помощи в ходе презентации и/или проектирование процессов (за исключением языковых барьеров)",null,{"$f":"IF(ABS(D112)>RUBRIC_SCALE,RUBRIC_SCALE,ABS(D112))","v":0}]
[null,null,"Значительное злоупотребление коммерческими компонентами без достаточного обоснования",null,{"$f":"IF(ABS(D113)>RUBRIC_SCALE,RUBRIC_SCALE,ABS(D113))","v":0}]
[null,null,"Значительное злоупотребление повторно используемыми компонентами без достаточного обоснования",null,{"$f":"IF(ABS(D114)>RUBRIC_SCALE,RUBRIC_SCALE,ABS(D114))","v":0}]
[]
[null,null,null,null,null,null,null,null,{"$f":"SUM(I103:I114)","v":0},"Final Score"]
["Other Comments"]

{"sheet":"RUBRIC","index":2,"n_rows":15,"n_cols":8,"rows_kept":15,"cut":false,"hidden":false,"merged":[]}
["Scoring Rubric (applies to all score Items)","Outcome","Criteria","Score",null,"Discretionary Points Rubric ","Degree","Points"]
[null,"Missing","Not included, can’t evaluate",0,null,"Criteria:","None",0]
[null,"Needs work","Effort made, meets some key requirements. Understanding or treatment of key requirements needs more depth. Judges had to question deeply to find answers.",1,null," - Novelty\n - Depth of Understanding\n - Depth of Analysis\n - Effectiveness (functions as intended)\n - Quality of Implementation","Minor",1]
[null,"Partially meets requirement","Response demonstrates understanding and addresses most key requirements. Simple prodding from judges encouraged team to answer.",2,null,null,"Fair",2]
[null,"Meets requirement","Response demonstrates thorough understanding and addresses all key requirements. Team addressed topic without prompting.",3,null,null,"Good",3]
[null,"Exceeds requirement","Response extends beyond key requirements, demonstrating exceptional depth and breadth of understanding",4,null,null,"Extraordinary",4]
[]
[null,null,null,null,null,"Deductions Rubric ","Degree","Deduction"]
[null,null,null,null,null,"Criteria:","None",0]
[null,null,null,null,null,"  - Extent to which team relied on outside help, existing work and/or purchased components and services","Minor",1]
[null,null,null,null,null,null,"Fair",2]
[null,null,null,null,null,null,"Medium",3]
[null,null,null,null,null,null,"Extreme",4]
["SCORE_SCALE",100]
["RUBRIC_SCALE",4]

{"sheet":"TeamList","index":3,"n_rows":41,"n_cols":15,"rows_kept":41,"cut":false,"hidden":false,"merged":[[2,11,11,11]]}
["Team Number","Team Name",null,"Team Number","Team Name",null,"Competition Class",null,null,"Judge Assignment"]
["EX 1","Arab Academy for Science and Technology Invictus",null,"RNG 1","Highlands Intermediate Kaimana Enterprises",null,"Ranger",null,null,null,null,"Instructions:"]
["EX 2","Garrett College Project Kraken",null,"RNG 2","Community Team ROBOTECH The Kraken",null,"Explorer",null,null,null,null,"To filter based off assignment enter team numbers 1 per cell in the format EX space # or RNG space #\n\nTable will automatically grow based off number of cells below heading (don't skip a row)",null,null,"DO NOT DELETE"]
["EX 3","The Center for Robotics Development RC ROV",null,"RNG 3","Kealakake High Lalo Ka Wai",null,null,null,null,null,null,null,null,null,{"$f":"IF(COUNTA(JudgeAssign[])=0,CompetitionClass,\"JudgeFilter\")","v":0}]
["EX 4","Technologico Monterrey TecXotic",null,"RNG 4","Macau Anglican College Fish Logic"]
["EX 5","Norwegian University Science and Tech Vortex NTNU",null,"RNG 5","Staples High School Curiodyssea"]
["EX 6","Jesuit High School Robotics",null,"RNG 6","Mt. Laurel Township Hydro Tech"]
["EX 7","Hong Kong University of Science and Technology EPOXSEA",null,"RNG 7","Argo Community High Knights of Poseidon"]
["EX 8","University of Sheffield Avalon",null,"RNG 8","STEM ECHS The CORPS"]
["EX 9","Memorial University of Newfoundland Eastern Edge Robotics",null,"RNG 9","California Academy of Math and Science CAMS"]
["EX 10","Long Beach City College VX Industries",null,"RNG 10","North Paulding Wolfpack Robotics"]
["EX 11","Purdue University IEEE",null,"RNG 11","Corner Brook Regional High Titans"]
["EX 12","Effat University Zoom Engineers",null,"RNG 12","First Flight Middle School - NexGen"]
["EX 13","SVKMs NMIMS Team Screwdriver",null,"RNG 13","Saturday ROV Club Watsonville Firefighters Seal Team 1272"]
["EX 14","Faculty of Engineering Alexandria Univeristy Vortex",null,"RNG 14","Bentley Upper School Phoenix Electronics"]
["EX 15","Clatsop Community College Lazarus",null,"RNG 15","Woodinville High Sea Wolf"]
["EX 16","Istanbul Technical University",null,"RNG 16","Pine Crest High Panther Robotics"]
["EX 17","Copiah Lincoln Community College SURE",null,"RNG 17","Kwok Tak Seng Catholic KTSCSS Dolphin"]
["EX 18","Bauman Moscow Technical University Hydronautics",null,"RNG 18","Ozaukee High School Robotics"]
["EX 19","Sea Tech 4H Club Daedalus",null,"RNG 19","Eureka Tech Academy Eureka C-Sharks"]
["EX 20","Northern Illinois University NIU Robotics",null,"RNG 20","Brother Rice High Crusader Robotics"]
["EX 21","Highway 68 ROV Club Sea Sweepers",null,"RNG 21","Harrington Middle School SeaBots"]
["EX 22","Dalhousie University Tigersharks",null,"RNG 22","Keith Grammar School impROVise"]
["EX 23","Faculty of Engineering Alexandria University TORPEDO",null,"RNG 23","Colegio Sagrado Corazon CYLON Corp"]
["EX 24","Milwaukee School of Engineering MSEO ROV",null,"RNG 24","Copenhagen School KEA Goes Deep"]
["EX 25","University of Stavanger UiS Subsea",null,"RNG 25","Gahanna Lincoln High The Lincoln Group"]
[null,null,null,"RNG 26","Stockbridge High Gold Team"]
[null,null,null,"RNG 27","Innovators"]
[null,null,null,"RNG 28","Robotics Club Kepler Enterprises"]
[null,null,null,"RNG 29","Newport High School Finnovators"]
[null,null,null,"RNG 30","Halifax Robotics Nova Underwater Tech"]
[null,null,null,"RNG 31","Limestone County Career Tech Lost Rockets"]
[null,null,null,"RNG 32","ALEV High School"]
[null,null,null,"RNG 33","The Center for Robotics Development Robocenter"]
[null,null,null,"RNG 34","CMA Secondary School CMass Robotics"]
[null,null,null,"RNG 35","Mount Pearl Senior High Husky Explorers"]
[null,null,null,"RNG 36","Palos Verdes Institute of Technology PVIT"]
[null,null,null,"RNG 37","Walnut Valley Quantum Hydromechs"]
[null,null,null,"RNG 38","O'Donel High School OD4D"]
[null,null,null,"RNG 39","Donuts School of Robotics Jr. Huskies"]
[null,null,null,"RNG 40","Sekolah Robot Indonesia"]